Cogmind - Beta 10.2 @@@ ROGUE MODE // 2021.02.22 @ 01:08:42 Player: cavemonk Result: Destroyed by F6-EGE(z) with Zionite Laser-S Performance ------------- Evolutions (3) 1500 Regions Visited (12) 2400 Robots Destroyed (69) 345 Value Destroyed (1584) 1584 Prototype IDs (39) 780 Alien Tech Used (0) 0 Bonus (595) 595 TOTAL SCORE: 7204 Bonus ------- High Alert Combat Kills 15 Aligned with FarCom 300 Met Imprinter 300 Friendly Fire -20 Cogmind --------- Core Integrity 0/700 Matter 285/300 Energy 83/100 System Corruption 0% Temperature Cool (9) Movement Core (850) Ox16 Location -7/Deep Caves Parts ------- > --- POWER (2) -------- (None) > --- PROPULSION (4) --- (None) > --- UTILITY (5) ------ Large Storage Unit High-capacity Storage Unit Improved Salvage Targeting Computer > --- WEAPON (2) ------- Spear > --- INVENTORY (18) --- Medium Treads Advanced Power Amplifier Coolant Injector Superbattery (1204) Long-range Sensor Array Experimental Sensor Array Advanced Signal Interpreter Advanced Terrain Scanner Precision Matter Filter System Restoration Module Long-range Proton Cannon YOLO Cannon Heavy Shock Bomb Launcher Heavy Missile Launcher Guided Missile Launcher Peak State ------------ > --- POWER ------------ Light Nuclear Core Cooled Deuterium Engine > --- PROPULSION ------- Flying Fortress v7 > --- UTILITY ---------- Large Storage Unit High-capacity Storage Unit Experimental Sensor Array Advanced Signal Interpreter Phasing AFG > --- WEAPON ----------- Greatsword > --- INVENTORY -------- Improved VTOL Module Improved VTOL Module Improved VTOL Module Advanced Power Amplifier Coolant Injector Coolant Injector Superbattery Long-range Sensor Array Advanced Signal Interpreter Precision Matter Filter Improved Force Field System Restoration Module Long-range Proton Cannon YOLO Cannon Heavy Shock Bomb Launcher Heavy Rocket Launcher Spear [Rating: 82] Favorites ----------- Power Light Nuclear Core Engine Cooled Deuterium Engine Power Core Light Nuclear Core Propulsion Light Treads Treads Light Treads Leg Aluminum Leg Wheel Wheel Flight Unit Flying Fortress v7 Utility Large Storage Unit Device Improved Heat Sink Storage Large Storage Unit Processor Advanced Signal Interpreter Hackware Hacking Suite Protection Hardened Light Armor Plating Weapon Light Cannon Energy Gun Heavy EM Shotgun Energy Cannon YOLO Cannon Ballistic Cannon Light Cannon Launcher Rocket Launcher Special Weapon Molecular Deconstructor Slashing Weapon Greatsword Piercing Weapon Spear Build | -11 -10 -10 -10 -9 -8 -7 -7 -7 -7 -7 -7 -7 ------- Run | Scr Mat Min Exi Min Mat Fac Was Fac Low Low Zio Dee Slots Evolved 6 | . . . . . 4 2 . . . . . . Power 1 | . . . . . . 1 . . . . . . Propulsion 2 | . . . . . 2 . . . . . . . Utility 3 | . . . . . 2 1 . . . . . . Weapon . | . . . . . . . . . . . . . Parts Attached 148 | 4 30 7 4 4 26 25 1 13 11 12 7 4 Power 20 | . 1 1 1 . 3 8 1 1 4 . . . Engine 14 | . . 1 1 . 1 7 . 1 3 . . . Core 6 | . 1 . . . 2 1 1 . 1 . . . Reactor . | . . . . . . . . . . . . . Propulsion 35 | 3 18 6 2 . 4 2 . . . . . . Treads 17 | 2 10 3 2 . . . . . . . . . Leg . | . . . . . . . . . . . . . Wheel 12 | 1 8 3 . . . . . . . . . . Hover . | . . . . . . . . . . . . . Flight 6 | . . . . . 4 2 . . . . . . Utility 53 | 1 5 . . 4 7 12 . 9 4 6 3 2 Device 29 | 1 2 . . 3 5 4 . 4 2 4 3 1 Storage 5 | . 3 . . . 1 . . 1 . . . . Processor 3 | . . . . . . 2 . . . . . 1 Hackware 1 | . . . . . . 1 . . . . . . Protection 15 | . . . . 1 1 5 . 4 2 2 . . Artifact . | . . . . . . . . . . . . . Weapon 40 | . 6 . 1 . 12 3 . 3 3 6 4 2 Energy Gun 10 | . 2 . . . 8 . . . . . . . Energy Cannon 2 | . . . 1 . . . . . . . . 1 Ballistic Gun . | . . . . . . . . . . . . . Ballistic Cannon 4 | . 4 . . . . . . . . . . . Launcher 8 | . . . . . 3 . . . . 2 3 . Special Weapon 1 | . . . . . . . . . 1 . . . Impact Weapon . | . . . . . . . . . . . . . Slashing Weapon 6 | . . . . . 1 1 . 1 . 2 1 . Piercing Weapon 9 | . . . . . . 2 . 2 2 2 . 1 Special Melee Weapon . | . . . . . . . . . . . . . Unidentified Prototypes 13 | . . . . 1 4 1 . 1 1 2 3 . Parts Lost 13 | . 2 1 . . . 2 1 . 2 . . 5 Power 5 | . . 1 . . . 1 . . 1 . . 2 Propulsion 1 | . . . . . . . . . . . . 1 Utility 4 | . . . . . . . 1 . 1 . . 2 Weapon 3 | . 2 . . . . 1 . . . . . . Highest Loss Streak 5 | . 1 1 . . . 1 1 . 1 . . 5 Average Slot Usage (%) 85 | . 99 100 88 84 70 72 74 69 62 68 68 65 Engine 6 | . 5 . 14 14 1 14 12 14 14 7 7 5 Core 7 | . 8 13 . . 7 . 1 . . 7 7 6 Treads 12 | . 15 24 24 28 . . . . . . . . Wheel 3 | . 12 3 3 . . . . . . . . . Flight 3 | . . . . . 8 6 7 7 7 7 7 6 Device 11 | . 13 14 14 11 8 6 . 6 12 12 15 10 Storage 14 | . 14 14 14 14 17 15 15 15 15 15 15 15 Processor 2 | . . . . . . 6 7 7 7 7 7 11 Hackware 1 | . . . . . . 6 7 7 . . . . Protection 1 | . . . . 2 9 1 5 . 1 2 . . Energy Gun 2 | . 10 . . . 15 . . . . . . . Energy Cannon 1 | . . . 10 14 . . . . . . . 1 Ballistic Cannon 12 | . 17 28 7 . . . . . . . . . Slashing Weapon 1 | . . . . . . 4 . . . . 6 3 Piercing Weapon 1 | . . . . . . 4 15 7 2 4 . 1 Naked Turns . | . . . . . . . . . . . . . Heaviest Build 85 | 14 28 28 40 44 63 60 58 74 72 78 76 85 Greatest Support 72 | 20 40 40 40 40 72 72 72 72 72 72 72 72 Greatest Overweight (x) 17 | 1 9 9 2 1 17 17 . 1 . 1 1 1 Average Overweight (x) 1 | . 1 4 . . . . . . . . . . Largest Inventory Capacity 18 | 6 12 10 10 10 16 16 16 18 18 18 18 18 Average Capacity 13 | 6 9 10 10 10 15 16 16 17 18 18 18 18 Most Carried 18 | 6 10 10 10 10 16 16 16 18 18 18 18 18 Average Carried 12 | 4 9 9 9 9 11 15 14 17 17 17 17 17 Final Capacity 18 | 6 10 10 10 10 16 16 16 18 18 18 18 18 Final Carried 18 | 5 10 10 10 10 16 16 15 18 16 18 18 17 Class Distribution -------------------- 88% | Mutant 11% | Scout Dominant Class ---------------- Mutant | -10/Materials Mutant | -10/Mines Mutant | -10/Exiles Mutant | -9/Mines Mutant | -8/Materials Mutant | -7/Factory Mutant | -7/Waste Mutant | -7/Factory Scout | -7/Lower Caves Scout | -7/Lower Caves Scout | -7/Zion Mutant | -7/Deep Caves Resources | -11 -10 -10 -10 -9 -8 -7 -7 -7 -7 -7 -7 -7 ----------- Run | Scr Mat Min Exi Min Mat Fac Was Fac Low Low Zio Dee Matter Collected 2450 | 240 527 184 40 40 115 623 . 207 141 263 36 34 Remotely . | . . . . . . . . . . . . . Salvage Created 2949 | 133 679 76 . 69 144 953 . 152 82 559 . 102 Parts 144 | 8 42 11 . 3 7 37 . 13 3 20 . . Haulers Intercepted 4 | . 2 . . . 1 . . . . 1 . . Recyclers Shooed 2 | . 1 . . . . 1 . . . . . . Parts Field Recycled . | . . . . . . . . . . . . . Retrieved Matter . | . . . . . . . . . . . . . Parts Self-Destructed 13 | . . . . . . . . . 5 8 . . Prevented 5 | . . . . . . . . . . 4 1 . Kills | -11 -10 -10 -10 -9 -8 -7 -7 -7 -7 -7 -7 -7 ------- Run | Scr Mat Min Exi Min Mat Fac Was Fac Low Low Zio Dee Combat Hostiles Destroyed 39 | . 11 7 . 2 4 7 . . . 8 . . Melee 8 | . 1 . . . . 7 . . . . . . Guns 7 | . 7 . . . . . . . . . . . Cannons 10 | . 3 7 . . . . . . . . . . AOE 13 | . . . . 2 4 . . . . 7 . . Classes Destroyed 17 | 2 6 1 . 1 . 3 . 1 2 1 . . Worker 4 | . 2 . . . . 1 . 1 . . . . Builder 1 | . . . . . . . . 1 . . . . Tunneler 2 | 2 . . . . . . . . . . . . Hauler 4 | . 2 . . . 1 . . . . 1 . . Recycler 9 | 1 1 . . . . 6 . 1 . . . . Minesweeper 1 | . . . . . . . . . 1 . . . Operator 5 | . 4 . . . . 1 . . . . . . Watcher 5 | . 1 . . . 1 2 . 1 . . . . Swarmer 15 | . 3 6 . . 3 . . . . 3 . . Grunt 15 | . 8 . . . . 2 . . . 5 . . Brawler 1 | . . . . . . 1 . . . . . . Duelist 1 | . . . . . . 1 . . . . . . Sentry 4 | . . . . 2 1 1 . . . . . . Programmer 2 | . . . . . . 2 . . . . . . Decomposer 1 | . . . . . . . . . . 1 . . Packrat 1 | . . . . . . . . . 1 . . . Samaritan 1 | . . . . . . . . . . 1 . . Tinkerer 2 | . . . . . . . . . 1 1 . . Assembled 1 | . . 1 . . . . . . . . . . Best Kill Streak 6 | 2 5 3 . 2 3 3 . 2 1 6 . . Combat Bots Only 5 | . 5 3 . 2 3 3 . . . 5 . . Max Kills in Single Turn 2 | 1 1 1 . 2 2 1 . 1 1 2 . . Gunslinging . | . . . . . . . . . . . . . Exploded 2 | . . . . 2 2 . . . . 2 . . Melee 1 | . 1 . . . . 1 . . . . . . Uniques/NPCs Destroyed . | . . . . . . . . . . . . . Combat | -11 -10 -10 -10 -9 -8 -7 -7 -7 -7 -7 -7 -7 -------- Run | Scr Mat Min Exi Min Mat Fac Was Fac Low Low Zio Dee Damage Taken 3669 | . 410 251 . 175 137 985 40 83 97 147 . 1344 Core 855 | . 84 21 . 33 17 96 . 16 . 28 . 560 Absorbed by Shields 222 | . . . . . . . . . . . . 222 Core Remaining (%) 80 | 100 . . . 44 96 . . . . . . . Volleys Fired 97 | 7 45 11 . 4 18 . . . 4 8 . . Largest 2 | 2 2 2 . 1 2 . . . 1 1 . . Hottest 126 | 100 100 70 . 100 126 . . . . 46 . . Shots Fired 170 | 14 90 22 . 4 28 . . . 4 8 . . Gun 98 | 14 64 . . . 20 . . . . . . . Cannon 52 | . 26 22 . 4 . . . . . . . . Launcher 16 | . . . . . 8 . . . . 8 . . Special 4 | . . . . . . . . . 4 . . . Kinetic 48 | . 26 22 . . . . . . . . . . Thermal 67 | 14 39 . . 4 10 . . . . . . . Explosive 11 | . . . . . 8 . . . . 3 . . Electromagnetic 40 | . 25 . . . 10 . . . . 5 . . Robot Hit Streak 12 | 4 12 5 . . 7 . . . 2 1 . . Robot Miss Streak 5 | 3 4 2 . . 5 . . . 1 3 . . Penetration Max . | . . . . . . . . . . . . . Secondary Targets . | . . . . . . . . . . . . . Shots Hit Robots 170 | 9 58 11 . . 13 42 . 6 7 10 . 14 Core Hits 96 | 4 28 7 . 3 8 22 . 4 3 14 . 3 Critical Hits 5 | . . 1 . . . 1 . 1 . 1 . 1 Critical Kills 2 | . . . . . . 1 . 1 . . . . Critical Parts Destroyed 3 | . . 1 . . . . . . . 1 . 1 Melee Attacks 146 | . . . . . 3 85 . 16 6 14 . 22 Impact . | . . . . . . . . . . . . . Slashing 65 | . . . . . 3 55 . . . . . 7 Piercing 81 | . . . . . . 30 . 16 6 14 . 15 Sneak Attacks 22 | . . . . . . 10 . 3 2 7 . . Combat Hostiles 1 | . . . . . . 1 . . . . . . Follow-up Attacks . | . . . . . . . . . . . . . Damage Inflicted 7334 | 114 853 202 . 292 524 2265 . 377 261 1388 . 1058 Guns 935 | 114 615 . . . 206 . . . . . . . Cannons 431 | . 229 202 . . . . . . . . . . Explosions 1247 | . . . . 292 318 . . . . 637 . . Melee 4712 | . . . . . . 2265 . 377 261 751 . 1058 Ramming 9 | . 9 . . . . . . . . . . . Kinetic 431 | . 229 202 . . . . . . . . . . Thermal 876 | 114 348 . . 292 122 . . . . . . . Explosive 528 | . . . . . 267 . . . . 261 . . Electromagnetic 778 | . 267 . . . 135 . . . . 376 . . Impact . | . . . . . . . . . . . . . Slashing 2369 | . . . . . . 1606 . . . . . 763 Piercing 2343 | . . . . . . 659 . 377 261 751 . 295 Highest Corruption 11 | . . . . . . 1 11 11 11 11 11 . Average Corruption 9 | . . . . . . 1 9 11 11 11 11 . Corruption Purged . | . . . . . . . . . . . . . Effects 98 | . . . . . . 2 4 46 19 25 2 . Message Errors 17 | . . . . . . 1 . 8 4 3 1 . Matter Fused 19 | . . . . . . . 1 9 4 5 . . Heat Flow Errors 8 | . . . . . . . . 4 1 2 1 . Energy Discharges 6 | . . . . . . . . 3 2 1 . . Parts Rejected 1 | . . . . . . . . 1 . . . . Data Loss (minor) 11 | . . . . . . 1 1 3 3 3 . . Data Loss (major) 2 | . . . . . . . . 1 . 1 . . Alerts 2 | . . . . . . . . 1 . 1 . . Misdirections 27 | . . . . . . . 2 15 5 5 . . Targeting Errors 5 | . . . . . . . . 1 . 4 . . Overload Shots . | . . . . . . . . . . . . . Overflow Damage 1165 | . . . . . 57 365 . . 119 153 . 471 Projectiles . | . . . . . . . . . . . . . Explosions 57 | . . . . . 57 . . . . . . . Melee 1108 | . . . . . . 365 . . 119 153 . 471 Knockbacks 4 | . 1 3 . . . . . . . . . . Impact . | . . . . . . . . . . . . . Kinetic 4 | . 1 3 . . . . . . . . . . Secondary . | . . . . . . . . . . . . . Self-Inflicted Damage 151 | . . . . . 60 . . . . 91 . . Shots 4 | . . . . . 2 . . . . 2 . . Rammed 3 | . 3 . . . . . . . . . . . Targets Rammed 3 | . 3 . . . . . . . . . . . Kicked . | . . . . . . . . . . . . . Crushed . | . . . . . . . . . . . . . Highest Temperature 270 | 117 270 . . . 218 12 . 217 145 260 84 4 Average Temperature 69 | 48 71 . . . 57 5 . 94 78 78 43 2 Received Heat Transfer 865 | . 195 39 . . 9 186 . 36 15 9 . 376 Siege Activations . | . . . . . . . . . . . . . Robots Corrupted 2 | . . . . . 1 . . . . 1 . . Combat Hostiles 1 | . . . . . . . . . . 1 . . Parts Fried 3 | . . . . . 1 . . . . 2 . . Impact Corruptions . | . . . . . . . . . . . . . Robots Melted . | . . . . . . . . . . . . . Combat Hostiles . | . . . . . . . . . . . . . Parts Melted 2 | . 2 . . . . . . . . . . . Heat Transferred 1837 | 333 1036 . . 320 148 . . . . . . . Parts Sabotaged . | . . . . . . . . . . . . . Parts Stolen . | . . . . . . . . . . . . . Parts Stripped . | . . . . . . . . . . . . . Power Chain Reactions 2 | . . . . . 1 . . . . 1 . . Missiles Intercepted . | . . . . . . . . . . . . . Alert | -11 -10 -10 -10 -9 -8 -7 -7 -7 -7 -7 -7 -7 ------- Run | Scr Mat Min Exi Min Mat Fac Was Fac Low Low Zio Dee Peak Influence 659 | 15 261 160 . 40 202 659 235 194 . . . . Initial 230 | . 9 20 . . 15 . 230 164 . . . . Average 73 | 6 103 11 . 10 45 241 229 99 . . . . Maximum Alert Level 2 | . 1 . . . 1 2 1 . . . . . Low Security (%) 86 | 100 91 100 . 100 92 27 . 100 . . . . Level 1 13 | . 8 . . . 7 70 100 . . . . . Level 2 . | . . . . . . 2 . . . . . . Level 3 . | . . . . . . . . . . . . . Level 4 . | . . . . . . . . . . . . . Level 5 . | . . . . . . . . . . . . . High Security . | . . . . . . . . . . . . . Max Security . | . . . . . . . . . . . . . Squads Dispatched 15 | . 3 . . . 2 7 . 3 . . . . Investigation 2 | . . . . . . 1 . 1 . . . . Extermination 4 | . . . . . . 3 . 1 . . . . Reinforcement 9 | . 3 . . . 2 3 . 1 . . . . Assault . | . . . . . . . . . . . . . Garrison . | . . . . . . . . . . . . . Intercept . | . . . . . . . . . . . . . Construction Impeded . | . . . . . . . . . . . . . Haulers Reinforced . | . . . . . . . . . . . . . Stealth | -11 -10 -10 -10 -9 -8 -7 -7 -7 -7 -7 -7 -7 --------- Run | Scr Mat Min Exi Min Mat Fac Was Fac Low Low Zio Dee Distress Signals 1 | . 1 . . . . . . . . . . . Communications Jammed . | . . . . . . . . . . . . . Distress Signals . | . . . . . . . . . . . . . Times Spotted 106 | . 27 8 . . 11 27 6 9 6 9 . 3 Peak Tracking Total 7 | . 6 3 . 2 3 7 6 3 7 5 . 3 Tactical Retreats 9 | . 1 . . . . 3 . 1 3 1 . . Traps | -11 -10 -10 -10 -9 -8 -7 -7 -7 -7 -7 -7 -7 ------- Run | Scr Mat Min Exi Min Mat Fac Was Fac Low Low Zio Dee Traps Triggered 8 | . 3 . . . . 3 . 2 . . . . Indirectly . | . . . . . . . . . . . . . Trap Hack Attempts . | . . . . . . . . . . . . . Triggered . | . . . . . . . . . . . . . Disarmed . | . . . . . . . . . . . . . Reprogrammed . | . . . . . . . . . . . . . Reused 3 | . . . . . . . . . 3 . . . Traps Extracted . | . . . . . . . . . . . . . Installed 7 | . . . . . . . . . 7 . . . Triggered 3 | . . . . . . . . . 3 . . . Machines | -11 -10 -10 -10 -9 -8 -7 -7 -7 -7 -7 -7 -7 ---------- Run | Scr Mat Min Exi Min Mat Fac Was Fac Low Low Zio Dee Machines Disabled 4 | . . . . . 2 . . 1 1 . . . Max in Single Turn 1 | . . . . . 1 . . 1 1 . . . Machines Sabotaged . | . . . . . . . . . . . . . Garrisons Compromised . | . . . . . . . . . . . . . Overloaded Fab Kills . | . . . . . . . . . . . . . Fab Network Shutdowns 1 | . . . . . . 1 . . . . . . Hacking | -11 -10 -10 -10 -9 -8 -7 -7 -7 -7 -7 -7 -7 --------- Run | Scr Mat Min Exi Min Mat Fac Was Fac Low Low Zio Dee Machines Accessed 40 | . 7 . 1 . 3 18 . 9 . 2 . . Terminals 24 | . 5 . . . 3 13 . 3 . . . . Fabricators 4 | . . . . . . 3 . 1 . . . . Repair Stations 1 | . . . . . . . . 1 . . . . Recycling Units 3 | . 2 . . . . . . 1 . . . . Scanalyzers 5 | . . . . . . 2 . 3 . . . . Garrison Access . | . . . . . . . . . . . . . Total Hacks 110 | . 19 . 1 . 13 48 . 18 . 11 . . Successful 62 | . 7 . 1 . 8 25 . 10 . 11 . . Failed 48 | . 12 . . . 5 23 . 8 . . . . Catastrophic 13 | . 4 . . . . 5 . 4 . . . . Database Lockouts . | . . . . . . . . . . . . . Manual 56 | . 10 . 1 . 11 25 . 4 1 . 4 . Terminals 68 | . 15 . . . 13 36 . 4 . . . . Fabricators 12 | . . . . . . 8 . 4 . . . . Repair Stations 2 | . . . . . . . . 2 . . . . Recycling Units 6 | . 4 . . . . . . 2 . . . . Scanalyzers 10 | . . . . . . 4 . 6 . . . . Garrison Access . | . . . . . . . . . . . . . Terminal Hacks 36 | . 6 . 1 . 7 11 . . . 11 . . Record 10 | . . . . . . . . . . 10 . . Part Schematic 3 | . 1 . . . 1 1 . . . . . . Prototype ID Bank 1 | . 1 . . . . . . . . . . . Open Door 1 | . . . . . . . . . . 1 . . Level Access Points 1 | . . . . . 1 . . . . . . . Branch Access Points 1 | . . . . . . 1 . . . . . . Terminal Index 3 | . 1 . . . 1 1 . . . . . . Fabricator Index 1 | . . . . . . 1 . . . . . . Scanalyzer Index 1 | . . . . . . 1 . . . . . . Alert Level 3 | . 1 . . . 1 1 . . . . . . Unreport Threat 2 | . . . . . 2 . . . . . . . Locate Traps 3 | . 1 . . . 1 1 . . . . . . Recall Extermination 1 | . . . . . . 1 . . . . . . Recall Reinforcements 2 | . . . . . . 2 . . . . . . Registered Components 1 | . . . . . . 1 . . . . . . Zone Layout 1 | . 1 . . . . . . . . . . . EX-Prototype ID Bank 1 | . . . 1 . . . . . . . . . Fabricator Hacks 6 | . . . . . . 5 . 1 . . . . Load Schematic 3 | . . . . . . 2 . 1 . . . . Build 3 | . . . . . . 3 . . . . . . Repair Station Hacks 2 | . . . . . . . . 2 . . . . Scan Component 1 | . . . . . . . . 1 . . . . Repair 1 | . . . . . . . . 1 . . . . Recycling Unit Hacks 1 | . 1 . . . . . . . . . . . Retrieve Components 1 | . 1 . . . . . . . . . . . Scanalyzer 10 | . . . . . . 4 . 6 . . . . Insert Component 5 | . . . . . . 2 . 3 . . . . Analyze 5 | . . . . . . 2 . 3 . . . . Garrison Access Hacks . | . . . . . . . . . . . . . Unauthorized Hacks 7 | . . . . . 1 5 . 1 . . . . Terminals 4 | . . . . . 1 3 . . . . . . Assimilate 2 | . . . . . 1 1 . . . . . . Botnet 2 | . . . . . . 2 . . . . . . Fabricators 3 | . . . . . . 2 . 1 . . . . Siphon 3 | . . . . . . 2 . 1 . . . . Repair Stations . | . . . . . . . . . . . . . Recycling Units . | . . . . . . . . . . . . . Scanalyzers . | . . . . . . . . . . . . . Garrison Access . | . . . . . . . . . . . . . Data Cores Recovered 2 | . 2 . . . . . . . . . . . Used 2 | . 2 . . . . . . . . . . . Hacking Detections 36 | . 7 . . . 3 18 . 8 . . . . Full Trace Events 2 | . . . . . . 1 . 1 . . . . Feedback Events . | . . . . . . . . . . . . . Feedback Blocked . | . . . . . . . . . . . . . Robot Schematics Acquired . | . . . . . . . . . . . . . Robots Built . | . . . . . . . . . . . . . Matter . | . . . . . . . . . . . . . Time . | . . . . . . . . . . . . . Total Robot Build Rating . | . . . . . . . . . . . . . Part Schematics Acquired 7 | . 1 . . . 1 3 . 2 . . . . Parts Built 3 | . . . . . . 3 . . . . . . Matter 542 | . . . . . . 542 . . . . . . Time 209 | . . . . . . 209 . . . . . . Total Part Build Rating 12 | . . . . . . 12 . . . . . . Parts Repaired 1 | . . . . . . . . 1 . . . . Time 78 | . . . . . . . . 78 . . . . Parts Recycled . | . . . . . . . . . . . . . Recycled Matter . | . . . . . . . . . . . . . Retrieved Matter . | . . . . . . . . . . . . . Retrieved Components 8 | . 8 . . . . . . . . . . . Parts Scanalyzed 4 | . . . . . . 2 . 2 . . . . Part Schematics Acquired 4 | . . . . . . 2 . 2 . . . . Parts Damaged 2 | . . . . . . . . 2 . . . . Bothacking | -11 -10 -10 -10 -9 -8 -7 -7 -7 -7 -7 -7 -7 ------------ Run | Scr Mat Min Exi Min Mat Fac Was Fac Low Low Zio Dee Used RIF Installer . | . . . . . . . . . . . . . Robots Hacked . | . . . . . . . . . . . . . Non-combat . | . . . . . . . . . . . . . Combat . | . . . . . . . . . . . . . Robot Hacks Applied . | . . . . . . . . . . . . . Relay Couplers Released . | . . . . . . . . . . . . . Robots Rewired . | . . . . . . . . . . . . . Allies Hacked . | . . . . . . . . . . . . . Hacks Repelled . | . . . . . . . . . . . . . Allies | -11 -10 -10 -10 -9 -8 -7 -7 -7 -7 -7 -7 -7 -------- Run | Scr Mat Min Exi Min Mat Fac Was Fac Low Low Zio Dee Total Allies 2 | . . . . . 1 1 . . . . . . Largest Group 1 | . . . . . 1 1 . . . . . . Highest-Rated Group 10 | . . . . . 10 10 . . . . . . Highest-Rated Ally 10 | . . . . . 10 10 . . . . . . Total Orders 2 | . . . . . 2 . . . . . . . STAY 1 | . . . . . 1 . . . . . . . FOLLOW 1 | . . . . . 1 . . . . . . . Ally Attacks . | . . . . . . . . . . . . . Total Damage . | . . . . . . . . . . . . . Kills . | . . . . . . . . . . . . . Allies Corrupted . | . . . . . . . . . . . . . Allies Melted . | . . . . . . . . . . . . . Intel | -11 -10 -10 -10 -9 -8 -7 -7 -7 -7 -7 -7 -7 ------- Run | Scr Mat Min Exi Min Mat Fac Was Fac Low Low Zio Dee Robot Analysis Total . | . . . . . . . . . . . . . Derelict Logs Recovered 5 | . . 1 . 1 . . . . . 2 1 . Drone Launches . | . . . . . . . . . . . . . Drone Recoveries . | . . . . . . . . . . . . . Exploration | -11 -10 -10 -10 -9 -8 -7 -7 -7 -7 -7 -7 -7 ------------- Run | Scr Mat Min Exi Min Mat Fac Was Fac Low Low Zio Dee Turns Passed 11186 | 63 1375 3844 485 558 889 1314 105 895 408 448 616 186 Spaces Moved 8945 | 36 1058 1378 340 314 485 1768 174 1136 603 579 893 181 Core 591 | . 1 586 . . 3 1 . . . . . . Treads 562 | 2 13 7 226 314 . . . . . . . . Legs . | . . . . . . . . . . . . . Wheels 1977 | 34 1044 785 114 . . . . . . . . . Hover . | . . . . . . . . . . . . . Flight 5815 | . . . . . 482 1767 174 1136 603 579 893 181 Fastest Speed 50 | 90 90 100 100 160 50 50 50 50 50 50 50 50 Average Speed 100 | 93 100 270 139 163 54 50 50 50 50 62 66 66 Slowest Speed 900 | 160 500 500 160 180 900 900 50 150 50 150 150 150 Overloaded Moves . | . . . . . . . . . . . . . Propulsion Burnouts . | . . . . . . . . . . . . . Robots Hopped 17 | . . . . . . 9 . 8 . . . . Cave-ins Triggered . | . . . . . . . . . . . . . Exploration Rate (%) 58 | 3 96 97 75 81 30 45 88 32 56 50 85 25 Regions Visited 12 Branch Regions 7 Pre-discovered Areas 2 | . . . . . . . . . . 1 1 . Known Exits Taken 5 | . . . . . 1 . . 1 1 1 1 . Unknown Exits Taken 5 | 1 1 1 1 1 . . . . . . . . Scrap Searched 11 | . . 2 . 1 . . . . 3 2 3 . Spaces Dug 74 | . . . . . 18 27 . 5 . 24 . . Terrain Destroyed 180 | . . . . 21 60 27 . 5 . 67 . . Melee 38 | . . . . . 3 27 . 5 . 3 . . Projectile 1 | . . . . 1 . . . . . . . . AOE 141 | . . . . 20 57 . . . . 64 . . Terrain Rammed . | . . . . . . . . . . . . . Walls Destroyed . | . . . . . . . . . . . . . Machines Disabled . | . . . . . . . . . . . . . Actions | -11 -10 -10 -10 -9 -8 -7 -7 -7 -7 -7 -7 -7 --------- Run | Scr Mat Min Exi Min Mat Fac Was Fac Low Low Zio Dee Total 10705 | 52 1272 1472 354 347 1076 2044 191 1432 695 639 917 214 Wait 1110 | 1 111 71 . 21 508 116 15 213 43 6 4 1 Move 8901 | 35 1057 1377 339 313 484 1751 173 1119 602 578 892 181 Hop 16 | . . . . . . 8 . 8 . . . . Pick Up 95 | 2 14 3 2 2 17 23 1 11 9 6 3 2 Fast Attach 55 | . 9 1 1 1 11 12 . 4 3 7 6 . Attach 37 | 4 5 1 3 1 5 5 1 3 6 1 . 2 Detach 19 | 1 1 . 2 . 1 2 . 3 2 5 1 1 Swap 56 | . 16 5 . 2 10 8 . 6 2 4 1 2 Drop 124 | 2 11 3 7 3 19 31 1 13 11 10 10 3 Fire 97 | 7 45 11 . 4 18 . . . 4 8 . . Melee 145 | . . . . . 3 84 . 16 6 14 . 22 Ram . | . . . . . . . . . . . . . Kick . | . . . . . . . . . . . . . Crush 3 | . 3 . . . . . . . . . . . Escape Stasis 40 | . . . . . . 4 . 36 . . . . Rewire . | . . . . . . . . . . . . . Trap 7 | . . . . . . . . . 7 . . . Miscellaneous . | . . . . . . . . . . . . . Route ------- -11/Scrapyard -10/Materials (discovered 4 exits: [*Mat x3] / [*Min]) -10/Mines (discovered 3 exits: [*Mat x2] / *Exi) -10/Exiles -9/Mines -8/Materials (discovered 4 exits: *Fac x3 / Sto) -7/Factory (discovered 2 exits: *Low x2) -7/Waste -7/Factory (discovered 5 exits: *Fac x3 / *Low x2) -7/Lower Caves -7/Lower Caves -7/Zion (discovered 2 exits: *Dee / [*Pro]) -7/Deep Caves History --------- Turn | Location | Event 4 | -11/Scrapyard | Discovered new exit (range 3) 64 | -11/Scrapyard | Entered Materials 311 | -10/Materials | Build established: Mutant 474 | -10/Materials | Discovered new exit (range 6) 756 | -10/Materials | Discovered new exit (range 11) 793 | -10/Materials | Discovered new exit (range 5) 871 | -10/Materials | Discovered new exit (range 6) 1439 | -10/Materials | Entered Mines 1500 | -10/Mines | Received a Rocket Launcher from a helpful Derelict 1763 | -10/Mines | Assembled infested the area 4897 | -10/Mines | Discovered new exit (range 10) 4918 | -10/Mines | Discovered new exit (range 10) 5079 | -10/Mines | Deemed a non-threat by the Exiles lab entrance 5080 | -10/Mines | Discovered new exit (range 5) 5283 | -10/Mines | Entered Exiles 5310 | -10/Exiles | Met 8R-AWN 5324 | -10/Exiles | Met EX-HEX 5351 | -10/Exiles | Met EX-BIN 5366 | -10/Exiles | Aligned with FarCom system 5367 | -10/Exiles | Given EX-Vault access code 5391 | -10/Exiles | Opened EX-Vault 5406 | -10/Exiles | Found YOLO Cannon 5414 | -10/Exiles | Found Flying Fortress v7 5417 | -10/Exiles | Found Superbattery 5453 | -10/Exiles | Warned to stay clear of 0b10 Research branches 5500 | -10/Exiles | Met EX-DEC 5638 | -10/Exiles | Visited The Gauntlet 5751 | -10/Exiles | Discovered new exit (range 14) 5768 | -10/Exiles | Stole three prototypes: YOLO Cannon, Flying Fortress v7, Superbattery 5768 | -10/Exiles | Entered Mines 5829 | -9/Mines | Found a damaged Exp. Sensor Array with a note attached 5834 | -9/Mines | Found Prototype Device 5840 | -9/Mines | Identified Exp. Sensor Array 6107 | -9/Mines | Learned Materials trap positions 6178 | -9/Mines | Core integrity fell below 50% 6244 | -9/Mines | Discovered new exit (range 12) 6326 | -9/Mines | Entered Materials 6326 | -8/Materials | Evolved 4 slots: Propulsion x2, Utility x2 6327 | -8/Materials | Identified exit to Storage 6328 | -8/Materials | Loaded intel: 7 trap records 6950 | -8/Materials | Identified exit to Factory 7215 | -8/Materials | Entered Factory 7215 | -7/Factory | Evolved 2 slots: Power x1, Utility x1 7217 | -7/Factory | FarCom data flow suspended 7433 | -7/Factory | Discovered new exit (range 10) 7516 | -7/Factory | Identified exit to Lower Caves 7773 | -7/Factory | Fabricated Hvy. Shock Bomb Launcher (x1) 7948 | -7/Factory | Fabricated Imp. VTOL Module? 8154 | -7/Factory | Fabricated Imp. VTOL Module? 8500 | -7/Factory | Local fabrication network quarantined 8529 | -7/Factory | Sucked down chute 8529 | -7/Factory | Entered Waste 8544 | -7/Waste | EMP discharged 8544 | -7/Waste | System corruption reached 10% 8547 | -7/Waste | Spotted C-40 Crusher 8598 | -7/Waste | Spotted C-40 Crusher 8599 | -7/Waste | Spotted C-40 Crusher 8600 | -7/Waste | Spotted C-40 Crusher 8603 | -7/Waste | Crushed by Compactor (1 part destroyed, 1 dropped) 8612 | -7/Waste | Spotted C-40 Crusher 8616 | -7/Waste | Spotted C-40 Crusher 8624 | -7/Waste | Discovered new exit (range 15) 8633 | -7/Waste | Identified exit to Factory 8634 | -7/Waste | Entered Factory 8707 | -7/Factory | Discovered new exit (range 16) 8940 | -7/Factory | Discovered new exit (range 16) 8948 | -7/Factory | Identified exit to Factory 9041 | -7/Factory | Repaired Broken Lrn. Proton Cannon 9200 | -7/Factory | Discovered exit to Lower Caves (range 10) 9315 | -7/Factory | Discovered exit to Factory (range 5) 9497 | -7/Factory | Discovered exit to Lower Caves (range 5) 9529 | -7/Factory | Entered Lower Caves 9577 | -7/Lower Caves | Acquired the password to a Derelict Tinkerer's latest research 9580 | -7/Lower Caves | Found Prototype Special Weapon 9580 | -7/Lower Caves | Identified Molecular Deconstructor 9614 | -7/Lower Caves | Attracted the attention of an 0b10 checkpoint 9766 | -7/Lower Caves | Encountered a Warlord checkpoint 9930 | -7/Lower Caves | Discovered new exit (range 14) 9936 | -7/Lower Caves | Identified exit to Lower Caves 9937 | -7/Lower Caves | Entered another Lower Caves area 10025 | -7/Lower Caves | Learned location of Extension (-6) 10025 | -7/Lower Caves | Learned 8 Research zone layouts 10025 | -7/Lower Caves | Learned Armory trap positions 10025 | -7/Lower Caves | Learned Extension emergency access door positions 10025 | -7/Lower Caves | Learned Armory stockpile data 10025 | -7/Lower Caves | Learned Armory terminal intel 10154 | -7/Lower Caves | Learned Factory emergency access door positions 10245 | -7/Lower Caves | Encountered a Warlord checkpoint 10251 | -7/Lower Caves | Discovered new exit (range 15) 10281 | -7/Lower Caves | Identified exit to Zion 10353 | -7/Lower Caves | Learned 8 Factory zone layouts 10385 | -7/Lower Caves | Entered Zion 10432 | -7/Zion | System corruption cleaned by Quarantine Array 10562 | -7/Zion | Discovered new exit (range 14) 10621 | -7/Zion | Acquired unknown access codes intercepted by a Zionite 10661 | -7/Zion | Found Prototype Device 10661 | -7/Zion | Identified Phasing AFG 10681 | -7/Zion | Given A8's code to call for help 10786 | -7/Zion | Learned Factory security intel 10787 | -7/Zion | Learned location of Armory (-3) 10889 | -7/Zion | Build established: Scout 10911 | -7/Zion | Found Prototype Launcher 10911 | -7/Zion | Identified Gui. Missile Launcher 10992 | -7/Zion | Opened final containment barrier to the Deep Caves 10999 | -7/Zion | Discovered new exit (range 5) 11000 | -7/Zion | Saw the warning signs outside the Deep Caves entrance 11000 | -7/Zion | Identified exit to Deep Caves 11001 | -7/Zion | Entered Deep Caves 11136 | -7/Deep Caves | Attacked by Z-Imprinter 11176 | -7/Deep Caves | Core integrity fell below 50% 11184 | -7/Deep Caves | Core integrity fell below 20% 11187 | -7/Deep Caves | Destroyed by F6-EGE(z) with Zionite Laser-S Last Messages --------------- 11126_ 5O-6W4(o) is busy at the terminal. Z-Imprinter: GET AWAY FROM HERE! I've worked too hard for our future just to have you ruin everything! 11144_ Dropped Superbattery. 11145_ Extracted 277 energy. 11146_ Extracted 85 energy. 11146_ Acquired Superbattery. 11154_ Dropped Superbattery. 11155_ Extracted 186 energy. 11155_ Cld. Deuterium Engine destroyed. 11156_ Extracted 103 energy. 11158_ Extracted 1 energy. 11159_ Extracted 92 energy. 11161_ Extracted 85 energy. 11162_ Acquired Superbattery. 11164_ Imp. Force Field destroyed. 11165_ Lgt. Nuclear Core destroyed. 11170_ Destroyed Prototype Hover Unit. 11175_ Flying Fortress v7 destroyed. 11181_ Adv. Signal Interpreter destroyed. Map ----- +----------------------------------------------------+ | | | | | | | | | | | | | | | | | ??????????????????????????????#??????????????????? | | ?????????????????????????????????????????????????? | | ????????????????????????????????????????????#????# | | ?????????????????????????????????????????????????# | | ????????????????????????######???????############# | | ???????????????? ????### ##??????# | | ?????????????? ##### #??????# | | ???????????? #??????# ##### #### | | ?????????? ???????# #???# #?## | | ????????? #???????# #???# #?#? | | ???????? #???????# #???# #??? | | ??????? ##??????# #?#?# #??? | | ?????? ######## ###?# #??? | | ?????" ##?# #??? | | ?????" z ### #??? | | ???? / #??? | | ?????" I z #### ######### | | ?????" @ ;##??# ##?????# | | ????"" ;;#??# ######### # | | ????"" ; #??# #?# # | | ??" " ;; #?## #### ##### # | | ?? ###??#### ??????# # | | ? #???????# #???##?# # | | ?" #?#?#???# #????#?# # | | ?" ;;???#???# #??????# # | | ??"" ;##?????## ######## | | ???""" ;??????# | | ??? #?????## ###### | | ??""" ;####### #????# | | ????"" ;## #????## | | ????""" ### % ##????# | | ?????"" ## % ###??# | | ?????"" ## #??# | | ?????" ###= ## = #??# | | ????? ##?#### ##??# | | ????? ##????## #???# | | ??????? #???#??# ## #???# | | ????????? ???????# ### #???# | | ???????????? ??????????# #?# #???# | | ?????????????? ???????????# ## ####### | | ?????????????????????????? ? ???????# ## | | ????????????????????????????????????## # | +----------------------------------------------------+ Best States ------------- Heat Dissipation 48 Energy Generation 31 Energy Capacity 460 Matter Stores 300 Matter Capacity 300 Sight Range 16 Robot Scan Range 30 Terrain Scan Range 20 Terrain Scan Density 10 Armor Coverage 225 Resistance: TH 15 Evasion (%) 60 Recoil Reduction 2 Salvage Targeting 2 Offensive Hacking 10 Item Schematics ----------------- Med. Storage Unit | -10/Materials | Hacked Adv. Signal Interpreter | -8/Materials | Hacked Neutrino Core | -7/Factory | Hacked Imp. VTOL Module | -7/Factory | Scanalyzed Exp. Sensor Array | -7/Factory | Scanalyzed Cld. VTOL Module | -7/Factory | Scanalyzed Imp. Salvage Targeting Computer | -7/Factory | Scanalyzed Robot Schematics ------------------ None Fabricated ------------ Hvy. Shock Bomb Launcher | x1 | -7/Factory | Preloaded Imp. VTOL Module | x1 | -7/Factory Imp. VTOL Module | x1 | -7/Factory Alien Tech Used ----------------- None Achievements -------------- None Challenges ------------ None Game ------ Seed BoreEtherialMeganuke Manual? 0 Play Time 01:58:58 Cumulative 193.1 hours Start 2021.02.21 @ 23:05:08 End 2021.02.22 @ 01:08:42 Sessions 1 Manual Loads 0 Difficulty Rogue Special Mode None Game No. 115 Rogue 115 Adventurer 0 Explorer 0 Win Type - Total 3 Types 3/0/0/0/0/0/0/0/0 Lore% 41 Gallery% 66 Achievement% 50 Wizard Run 0 Options --------- ASCII 0 Keyboard 0 Movement Mouse Keybinds 0 Fullscreen 2 Font 18/TerminusBold Map View 76x50 Tactical HUD 1 Map Filters NONE Filters NONE Steam 1 RUN: 652f9601-923c-4a3a-80ab-b09a8f796e04